Department Family,Entity,Date,Expense type,Expense area,Supplier,Transaction number,Amount
BEIS,ACAS,30/08/2022,OTHER PAYROLL COSTS,FEP,MHR INTERNATIONAL UK LTD,POIN709,19170.6
BEIS,ACAS,30/08/2022,OCCUPATIONAL HEALTH SERVICE,FEP,FLEXIFORM BUSINESS FURNITURE LTD,POIN710,482.4
BEIS,ACAS,31/08/2022,EXTERNAL LEARNING,ODHR,KPMG LLP,POIN711,252
BEIS,ACAS,31/08/2022,AGENCY STAFF,ODHR,ALEXANDER MANN SOLUTIONS LTD,POIN712,4003.44
BEIS,ACAS,24/08/2022,STAFF RECRUITMENT COSTS,ODHR,HAYS RECRUITMENT,POIN713,2665.5
BEIS,ACAS,24/08/2022,STAFF RECRUITMENT COSTS,ODHR,HAYS RECRUITMENT,POIN714,2132.4
BEIS,ACAS,31/08/2022,STAFF RECRUITMENT COSTS,ODHR,HAYS RECRUITMENT,POIN715,1599.3
BEIS,ACAS,31/08/2022,STAFF RECRUITMENT COSTS,ODHR,HAYS RECRUITMENT,POIN716,1386.06
BEIS,ACAS,02/09/2022,TRAINERS & GUEST SPEAKERS,ODHR,HEMSLEY FRASER GROUP LTD,POIN717,3876
BEIS,ACAS,02/09/2022,AGENCY STAFF,ODHR,MICHAEL PAGE,POIN718,4309.64
BEIS,ACAS,06/09/2022,PROFESSIONAL FEES,FEP,UK SHARED BUSINESS SERVICES LTD,POIN719,1300.02
BEIS,ACAS,05/09/2022,OCCUPATIONAL HEALTH SERVICE,FEP,FLEXIFORM BUSINESS FURNITURE LTD,POIN720,660.6
BEIS,ACAS,06/09/2022,OCCUPATIONAL HEALTH SERVICE,FEP,FLEXIFORM BUSINESS FURNITURE LTD,POIN721,810.22
BEIS,ACAS,07/09/2022,STAFF RECRUITMENT COSTS,ODHR,HAYS RECRUITMENT,POIN722,1599.3
BEIS,ACAS,07/09/2022,STAFF RECRUITMENT COSTS,ODHR,HAYS RECRUITMENT,POIN723,2132.4
BEIS,ACAS,08/09/2022,AGENCY STAFF,ODHR,ALEXANDER MANN SOLUTIONS LTD,POIN724,3202.75
BEIS,ACAS,08/09/2022,EXTERNAL LEARNING,ODHR,PEOPLE RESULTS LTD,POIN725,3348
BEIS,ACAS,09/09/2022,TRAINERS & GUEST SPEAKERS,ODHR,PAULINE HUGHES LIMITED,POIN726,900
BEIS,ACAS,31/08/2022,MANAGED SERVICE Off-PAYROLL WK,DELIVERY,OPENCAST SOFTWARE EUROPE LTD,POIN727,135248.76
BEIS,ACAS,29/07/2022,FACILITIES MANAGEMENT,FEP,GOVERNMENT PROPERTY AGENCY,POIN728,2078.01
BEIS,ACAS,09/09/2022,PROFESSIONAL FEES,FEP,GOVERNMENT PROPERTY AGENCY,POIN729,14581.25
BEIS,ACAS,12/09/2022,EXTERNAL LEARNING,ODHR,THE SCHOOL OF GOOD SERVICES LTD,POIN730,1248
BEIS,ACAS,31/08/2022,PUBLICATIONS AND PERIODICALS,STRATEGY,RESTORE RECORDS MANAGEMENT,POIN731,259.68
BEIS,ACAS,13/09/2022,EXTERNAL LEARNING,ODHR,TRACY MOUNTAIN CONSULTANCY LIMITED,POIN732,650
BEIS,ACAS,25/08/2022,CONTRACTOR OFF-PAYROLL IN IR35,DDAT,ALEXANDER MANN SOLUTIONS LTD,POIN733,3541.62
BEIS,ACAS,31/08/2022,CONTRACTOR OFF-PAYROLL IN IR35,DDAT,ALEXANDER MANN SOLUTIONS LTD,POIN734,3541.62
BEIS,ACAS,08/09/2022,CONTRACTOR OFF-PAYROLL IN IR35,DDAT,ALEXANDER MANN SOLUTIONS LTD,POIN735,2833.3
BEIS,ACAS,14/09/2022,EXTERNAL LEARNING,ODHR,QAIQ,POIN736,1712.4
BEIS,ACAS,28/07/2022,PROFESSIONAL FEES,DDAT,MATRIX BOOKING LIMITED,POIN737,4224
BEIS,ACAS,17/06/2022,PROFESSIONAL FEES,DDAT,VERSION 1 SOLUTIONS LTD,POIN738,3972.73
BEIS,ACAS,13/09/2022,TEAM MEETINGS,SPPC,WEST SUFFOLK COUNCIL,POIN739,300
BEIS,ACAS,15/09/2022,AGENCY STAFF,ODHR,ALEXANDER MANN SOLUTIONS LTD,POIN740,4003.44
BEIS,ACAS,14/09/2022,STAFF RECRUITMENT COSTS,ODHR,HAYS RECRUITMENT,POIN741,2132.4
BEIS,ACAS,14/09/2022,STAFF RECRUITMENT COSTS,ODHR,HAYS RECRUITMENT,POIN742,2665.5
BEIS,ACAS,26/08/2022,PROFESSIONAL FEES,DDAT,ATOS IT SERVICES UK LIMITED,POIN743,4930.79
BEIS,ACAS,25/08/2022,SOFTWARE & LICENCES,DDAT,ATOS IT SERVICES UK LIMITED,POIN744,2045.74
BEIS,ACAS,25/08/2022,SOFTWARE & LICENCES,DDAT,ATOS IT SERVICES UK LIMITED,POIN744,11191.03
BEIS,ACAS,25/08/2022,SOFTWARE & LICENCES,DDAT,ATOS IT SERVICES UK LIMITED,POIN744,2406
BEIS,ACAS,25/08/2022,TELEPHONES,DDAT,ATOS IT SERVICES UK LIMITED,POIN744,41.97
BEIS,ACAS,25/08/2022,TELEPHONES,DDAT,ATOS IT SERVICES UK LIMITED,POIN744,84.18
BEIS,ACAS,31/08/2022,PROFESSIONAL FEES,DDAT,BYTES SOFTWARE SERVICES LIMITED,POIN745,221.99
BEIS,ACAS,31/08/2022,PROFESSIONAL FEES,DDAT,BYTES SOFTWARE SERVICES LIMITED,POIN745,221.99
BEIS,ACAS,31/08/2022,PROFESSIONAL FEES,DDAT,BYTES SOFTWARE SERVICES LIMITED,POIN745,221.99
BEIS,ACAS,31/08/2022,PROFESSIONAL FEES,DDAT,BYTES SOFTWARE SERVICES LIMITED,POIN745,221.99
BEIS,ACAS,31/08/2022,PROFESSIONAL FEES,DDAT,VERSION 1 SOLUTIONS LTD,POIN746,2465.19
BEIS,ACAS,30/08/2022,SOFTWARE & LICENCES,DDAT,BIZZDESIGN UK LTD,POIN747,29700
BEIS,ACAS,24/08/2022,HARDWARE ADDITIONS,DDAT,PROBRAND LIMITED,POIN748,2593.66
BEIS,ACAS,24/08/2022,HARDWARE ADDITIONS,DDAT,PROBRAND LIMITED,POIN748,798.38
BEIS,ACAS,24/08/2022,COMPUTER HARDWARE,DDAT,PROBRAND LIMITED,POIN748,481.34
BEIS,ACAS,24/08/2022,COMPUTER HARDWARE,DDAT,PROBRAND LIMITED,POIN748,47.46
BEIS,ACAS,24/08/2022,COMPUTER HARDWARE,DDAT,PROBRAND LIMITED,POIN748,30
BEIS,ACAS,05/09/2022,EXTERNAL LEARNING,ODHR,DODS GROUP LTD,POIN749,354
BEIS,ACAS,05/09/2022,EXTERNAL LEARNING,ODHR,DODS GROUP LTD,POIN749,354
BEIS,ACAS,05/09/2022,EXTERNAL LEARNING,ODHR,DODS GROUP LTD,POIN749,354
BEIS,ACAS,24/08/2022,HARDWARE ADDITIONS,DDAT,PROBRAND LIMITED,POIN750,2593.66
BEIS,ACAS,24/08/2022,HARDWARE ADDITIONS,DDAT,PROBRAND LIMITED,POIN750,535.5
BEIS,ACAS,24/08/2022,COMPUTER HARDWARE,DDAT,PROBRAND LIMITED,POIN750,306.7
BEIS,ACAS,24/08/2022,COMPUTER HARDWARE,DDAT,PROBRAND LIMITED,POIN750,35.29
BEIS,ACAS,24/08/2022,COMPUTER HARDWARE,DDAT,PROBRAND LIMITED,POIN750,30
BEIS,ACAS,24/08/2022,HARDWARE ADDITIONS,DDAT,PROBRAND LIMITED,POIN751,2593.66
BEIS,ACAS,24/08/2022,HARDWARE ADDITIONS,DDAT,PROBRAND LIMITED,POIN751,535.5
BEIS,ACAS,24/08/2022,COMPUTER HARDWARE,DDAT,PROBRAND LIMITED,POIN751,306.7
BEIS,ACAS,24/08/2022,COMPUTER HARDWARE,DDAT,PROBRAND LIMITED,POIN751,35.29
BEIS,ACAS,24/08/2022,COMPUTER HARDWARE,DDAT,PROBRAND LIMITED,POIN751,30
BEIS,ACAS,09/09/2022,OCCUPATIONAL HEALTH SERVICE,FEP,FLEXIFORM BUSINESS FURNITURE LTD,POIN752,343.08
BEIS,ACAS,24/08/2022,HARDWARE ADDITIONS,DDAT,PROBRAND LIMITED,POIN753,2593.66
BEIS,ACAS,24/08/2022,HARDWARE ADDITIONS,DDAT,PROBRAND LIMITED,POIN753,535.5
BEIS,ACAS,24/08/2022,COMPUTER HARDWARE,DDAT,PROBRAND LIMITED,POIN753,306.7
BEIS,ACAS,24/08/2022,COMPUTER HARDWARE,DDAT,PROBRAND LIMITED,POIN753,35.29
BEIS,ACAS,24/08/2022,COMPUTER HARDWARE,DDAT,PROBRAND LIMITED,POIN753,30
BEIS,ACAS,09/09/2022,SOFTWARE & LICENCES,DDAT,PHOENIX SOFTWARE LTD,POIN755,394.56
BEIS,ACAS,09/09/2022,PROFESSIONAL FEES,DDAT,BIG BLUE DOOR,POIN756,900
BEIS,ACAS,01/09/2022,PROFESSIONAL FEES,DDAT,SIRIUS OPEN SOURCE LIMITED,POIN758,1792.61
BEIS,ACAS,21/07/2022,AGENCY STAFF,ODHR,ALEXANDER MANN SOLUTIONS LTD,POIN759,3202.75
BEIS,ACAS,01/08/2022,PROFESSIONAL FEES,DDAT,SIRIUS OPEN SOURCE LIMITED,POIN760,1792.61
BEIS,ACAS,15/09/2022,CONTRACTOR OFF-PAYROLL IN IR35,DDAT,ALEXANDER MANN SOLUTIONS LTD,POIN761,1416.65
BEIS,ACAS,13/09/2022,COMPUTER HARDWARE,DDAT,PROBRAND LIMITED,POIN762,10327.2
BEIS,ACAS,13/09/2022,COMPUTER HARDWARE,DDAT,PROBRAND LIMITED,POIN762,3577.5
BEIS,ACAS,15/09/2022,PROFESSIONAL FEES,DDAT,Canon (UK) Ltd,POIN763,420
BEIS,ACAS,04/08/2022,CONTRACTOR OFF-PAYROLL IN IR35,DELIVERY,ALEXANDER MANN SOLUTIONS LTD,POIN764,3272.35
BEIS,ACAS,20/09/2022,PROFESSIONAL FEES,DDAT,ATOS IT SERVICES UK LIMITED,POIN765,4930.79
BEIS,ACAS,20/09/2022,SOFTWARE & LICENCES,DDAT,ATOS IT SERVICES UK LIMITED,POIN766,2028.02
BEIS,ACAS,20/09/2022,SOFTWARE & LICENCES,DDAT,ATOS IT SERVICES UK LIMITED,POIN766,11054.56
BEIS,ACAS,20/09/2022,SOFTWARE & LICENCES,DDAT,ATOS IT SERVICES UK LIMITED,POIN766,2406
BEIS,ACAS,20/09/2022,TELEPHONES,DDAT,ATOS IT SERVICES UK LIMITED,POIN766,39
BEIS,ACAS,31/08/2022,PROFESSIONAL FEES,DELIVERY,LANGUAGE EMPIRE LTD,POIN767,2421.81
BEIS,ACAS,31/08/2022,PROFESSIONAL FEES,DELIVERY,LANGUAGE EMPIRE LTD,POIN767,2421.82
BEIS,ACAS,18/08/2022,CONTRACTOR OFF-PAYROLL IN IR35,DELIVERY,ALEXANDER MANN SOLUTIONS LTD,POIN768,2045.23
BEIS,ACAS,18/08/2022,CONTRACTOR OFF-PAYROLL IN IR35,DELIVERY,ALEXANDER MANN SOLUTIONS LTD,POIN768,1533.92
BEIS,ACAS,18/08/2022,CONTRACTOR OFF-PAYROLL IN IR35,DELIVERY,ALEXANDER MANN SOLUTIONS LTD,POIN768,1874.8
BEIS,ACAS,31/08/2022,MANAGED SERVICE Off-PAYROLL WK,DELIVERY,TISSKI LTD,POIN769,7296
BEIS,ACAS,31/08/2022,MANAGED SERVICE Off-PAYROLL WK,DELIVERY,TISSKI LTD,POIN769,20976
BEIS,ACAS,08/09/2022,CONTRACTOR OFF-PAYROLL IN IR35,DELIVERY,ALEXANDER MANN SOLUTIONS LTD,POIN770,2045.23
BEIS,ACAS,08/09/2022,CONTRACTOR OFF-PAYROLL IN IR35,DELIVERY,ALEXANDER MANN SOLUTIONS LTD,POIN770,2045.23
BEIS,ACAS,08/09/2022,CONTRACTOR OFF-PAYROLL IN IR35,DELIVERY,ALEXANDER MANN SOLUTIONS LTD,POIN771,2726.98
BEIS,ACAS,15/09/2022,CONTRACTOR OFF-PAYROLL IN IR35,DELIVERY,ALEXANDER MANN SOLUTIONS LTD,POIN772,2045.23
BEIS,ACAS,15/09/2022,CONTRACTOR OFF-PAYROLL IN IR35,DELIVERY,ALEXANDER MANN SOLUTIONS LTD,POIN772,1704.36
BEIS,ACAS,22/09/2022,AGENCY STAFF,ODHR,ALEXANDER MANN SOLUTIONS LTD,POIN773,4003.44
BEIS,ACAS,22/09/2022,EXTERNAL LEARNING,ODHR,QAIQ,POIN774,1712.4
BEIS,ACAS,23/09/2022,AGENCY STAFF,ODHR,MICHAEL PAGE,POIN775,1077.41
BEIS,ACAS,22/09/2022,CONTRACTOR OFF-PAYROLL IN IR35,DDAT,ALEXANDER MANN SOLUTIONS LTD,POIN776,708.32
BEIS,ACAS,21/09/2022,EXTERNAL LEARNING,ODHR,PSYSOFT LTD,POIN777,654
BEIS,ACAS,30/06/2022,PROFESSIONAL FEES,DDAT,VERSION 1 SOLUTIONS LTD,POIN778,6489.96
BEIS,ACAS,30/06/2022,PROFESSIONAL FEES,DDAT,VERSION 1 SOLUTIONS LTD,POIN778,0.04
BEIS,ACAS,30/06/2022,PROFESSIONAL FEES,DDAT,VERSION 1 SOLUTIONS LTD,POIN779,6490
BEIS,ACAS,30/06/2022,PROFESSIONAL FEES,DDAT,VERSION 1 SOLUTIONS LTD,POIN780,1462.42
BEIS,ACAS,30/06/2022,PROFESSIONAL FEES,DDAT,VERSION 1 SOLUTIONS LTD,POIN780,8399.99
BEIS,ACAS,28/09/2022,OTHER RESEARCH,STRATEGY,UNIVERSITY OF WESTMINSTER (TRADING) LTD,POIN781,3600
BEIS,ACAS,27/09/2022,TRAINERS & GUEST SPEAKERS,ODHR,HEALTH ASSURED LTD,POIN782,480
BEIS,ACAS,07/07/2022,MANAGED SERVICE Off-PAYROLL WK,DELIVERY,AXIS 12 LIMITED,POIN783,130050
BEIS,ACAS,07/07/2022,MANAGED SERVICE Off-PAYROLL WK,DELIVERY,AXIS 12 LIMITED,POIN783,8100
BEIS,ACAS,26/08/2022,MANAGED SERVICE Off-PAYROLL WK,DELIVERY,AXIS 12 LIMITED,POIN784,81225
BEIS,ACAS,26/08/2022,MANAGED SERVICE Off-PAYROLL WK,DELIVERY,AXIS 12 LIMITED,POIN785,66825
BEIS,ACAS,08/09/2022,AGENCY STAFF,DELIVERY,ALEXANDER MANN SOLUTIONS LTD,POIN786,2045.23
BEIS,ACAS,15/09/2022,AGENCY STAFF,DELIVERY,ALEXANDER MANN SOLUTIONS LTD,POIN787,2386.1
BEIS,ACAS,28/09/2022,STAFF RECRUITMENT COSTS,ODHR,HAYS RECRUITMENT,POIN788,2665.5
BEIS,ACAS,28/09/2022,STAFF RECRUITMENT COSTS,ODHR,HAYS RECRUITMENT,POIN789,2132.4
BEIS,ACAS,21/09/2022,STAFF RECRUITMENT COSTS,ODHR,HAYS RECRUITMENT,POIN790,2132.4
BEIS,ACAS,21/09/2022,STAFF RECRUITMENT COSTS,ODHR,HAYS RECRUITMENT,POIN791,2665.5
BEIS,ACAS,29/09/2022,CONTRACTOR OFF-PAYROLL IN IR35,DDAT,ALEXANDER MANN SOLUTIONS LTD,POIN792,3541.62
BEIS,ACAS,29/09/2022,AGENCY STAFF,ODHR,ALEXANDER MANN SOLUTIONS LTD,POIN793,4003.44
BEIS,ACAS,27/09/2022,SOFTWARE & LICENCES,DELIVERY,CABINET OFFICE,POIN794,361.84
BEIS,ACAS,30/09/2022,EVALUATION OF OPS ACTIVITIES,DELIVERY,I F F RESEARCH,POIN795,114762.55
BEIS,ACAS,05/09/2022,PERSONAL EXPENSE,DELIVERY,NAME / DESCRIPTION WITHHELD,EXPS942,156.15
BEIS,ACAS,05/09/2022,PERSONAL EXPENSE,DELIVERY,NAME / DESCRIPTION WITHHELD,EXPS942,96.39
BEIS,ACAS,05/09/2022,PERSONAL EXPENSE,DELIVERY,NAME / DESCRIPTION WITHHELD,EXPS942,35
BEIS,ACAS,05/09/2022,PERSONAL EXPENSE,DELIVERY,NAME / DESCRIPTION WITHHELD,EXPS942,10
BEIS,ACAS,05/09/2022,PERSONAL EXPENSE,SOUTH&LONDON,NAME / DESCRIPTION WITHHELD,EXPS945,258.3
BEIS,ACAS,05/09/2022,PERSONAL EXPENSE,SOUTH&LONDON,NAME / DESCRIPTION WITHHELD,EXPS945,55.63
BEIS,ACAS,05/09/2022,PERSONAL EXPENSE,SOUTH&LONDON,NAME / DESCRIPTION WITHHELD,EXPS945,5
BEIS,ACAS,05/09/2022,PERSONAL EXPENSE,SOUTH&LONDON,NAME / DESCRIPTION WITHHELD,EXPS945,10
BEIS,ACAS,05/09/2022,PERSONAL EXPENSE,SOUTH&LONDON,NAME / DESCRIPTION WITHHELD,EXPS945,30
BEIS,ACAS,05/09/2022,PERSONAL EXPENSE,SOUTH&LONDON,NAME / DESCRIPTION WITHHELD,EXPS945,5.2
BEIS,ACAS,01/09/2022,PROFESSIONAL FEES,DDAT,TISSKI LTD,PINV946,6340
BEIS,ACAS,05/09/2022,PERSONAL EXPENSE,NORTH&MID,NAME / DESCRIPTION WITHHELD,EXPS947,76.7
BEIS,ACAS,05/09/2022,PERSONAL EXPENSE,NORTH&MID,NAME / DESCRIPTION WITHHELD,EXPS947,80.1
BEIS,ACAS,05/09/2022,PERSONAL EXPENSE,NORTH&MID,NAME / DESCRIPTION WITHHELD,EXPS947,145.32
BEIS,ACAS,05/09/2022,PERSONAL EXPENSE,NORTH&MID,NAME / DESCRIPTION WITHHELD,EXPS947,25
BEIS,ACAS,07/09/2022,PERSONAL EXPENSE,WALES&MID,NAME / DESCRIPTION WITHHELD,EXPS952,101.7
BEIS,ACAS,07/09/2022,PERSONAL EXPENSE,WALES&MID,NAME / DESCRIPTION WITHHELD,EXPS952,47.7
BEIS,ACAS,07/09/2022,PERSONAL EXPENSE,WALES&MID,NAME / DESCRIPTION WITHHELD,EXPS952,13.5
BEIS,ACAS,07/09/2022,PERSONAL EXPENSE,WALES&MID,NAME / DESCRIPTION WITHHELD,EXPS952,10
BEIS,ACAS,07/09/2022,PERSONAL EXPENSE,WALES&MID,NAME / DESCRIPTION WITHHELD,EXPS952,15
BEIS,ACAS,07/09/2022,PERSONAL EXPENSE,WALES&MID,NAME / DESCRIPTION WITHHELD,EXPS952,5
BEIS,ACAS,07/09/2022,PERSONAL EXPENSE,WALES&MID,NAME / DESCRIPTION WITHHELD,EXPS952,35
BEIS,ACAS,07/09/2022,PERSONAL EXPENSE,WALES&MID,NAME / DESCRIPTION WITHHELD,EXPS952,10
BEIS,ACAS,07/09/2022,PERSONAL EXPENSE,WALES&MID,NAME / DESCRIPTION WITHHELD,EXPS952,20
BEIS,ACAS,07/09/2022,PERSONAL EXPENSE,WALES&MID,NAME / DESCRIPTION WITHHELD,EXPS952,12.2
BEIS,ACAS,30/08/2022,OTHER PAYROLL COSTS,FEP,MHR INTERNATIONAL UK LTD,PINV956,1560
BEIS,ACAS,30/08/2022,OTHER PAYROLL COSTS,FEP,MHR INTERNATIONAL UK LTD,PINV957,2638.8
BEIS,ACAS,30/08/2022,OTHER PAYROLL COSTS,FEP,MHR INTERNATIONAL UK LTD,PINV958,394.8
BEIS,ACAS,01/09/2022,VENUE HIRE (REC VAT),FEP,CLOCKWISE SAVOY LIMITED,PINV959,5448
BEIS,ACAS,01/09/2022,VENUE HIRE (REC VAT),FEP,CLOCKWISE SAVOY LIMITED,PINV960,1152
BEIS,ACAS,22/08/2022,REFUNDS,SOUTH&LONDON,THE GODOLPHIN SCHOOL,PINV962,255
BEIS,ACAS,17/08/2022,MEMBERSHIP FEES,DELIVERY,THE CIVIL MEDIATION COUNCIL,PINV966,360
BEIS,ACAS,31/08/2022,OCCUPATIONAL HEALTH SERVICE,ODHR,TP HEALTH LTD,PINV967,778.8
BEIS,ACAS,04/08/2022,MANAGED SERVICE Off-PAYROLL WK,DDAT,ALEXANDER MANN SOLUTIONS LTD,PINV968,32041.97
BEIS,ACAS,07/07/2022,OCCUPATIONAL HEALTH SERVICE,ODHR,HEALTH MANAGEMENT LTD,PINV969,1732.5
BEIS,ACAS,18/08/2022,PROFESSIONAL FEES,FEP,GOVERNMENT PROPERTY AGENCY,PINV971,708
BEIS,ACAS,18/08/2022,PROFESSIONAL FEES,FEP,GOVERNMENT PROPERTY AGENCY,PINV971,3645
BEIS,ACAS,17/08/2022,PROFESSIONAL FEES,FEP,GOVERNMENT PROPERTY AGENCY,PINV972,590
BEIS,ACAS,17/08/2022,PROFESSIONAL FEES,FEP,GOVERNMENT PROPERTY AGENCY,PINV972,3037.5
BEIS,ACAS,17/08/2022,SERVICE CHARGES,FEP,GOVERNMENT PROPERTY AGENCY,PINV972,2793
BEIS,ACAS,17/08/2022,RATES,FEP,GOVERNMENT PROPERTY AGENCY,PINV972,7630.54
BEIS,ACAS,17/08/2022,Lease Liability,FEP,GOVERNMENT PROPERTY AGENCY,PINV972,11012.75
BEIS,ACAS,22/08/2022,PROFESSIONAL FEES,FEP,GOVERNMENT PROPERTY AGENCY,PINV973,4353
BEIS,ACAS,17/08/2022,PROFESSIONAL FEES,FEP,GOVERNMENT PROPERTY AGENCY,PINV974,3627.5
BEIS,ACAS,17/08/2022,SERVICE CHARGES,FEP,GOVERNMENT PROPERTY AGENCY,PINV974,12240.15
BEIS,ACAS,17/08/2022,RATES,FEP,GOVERNMENT PROPERTY AGENCY,PINV974,8455
BEIS,ACAS,17/08/2022,Lease Liability,FEP,GOVERNMENT PROPERTY AGENCY,PINV974,19519.8
BEIS,ACAS,17/08/2022,PROFESSIONAL FEES,FEP,GOVERNMENT PROPERTY AGENCY,PINV975,6754.25
BEIS,ACAS,17/08/2022,RATES,FEP,GOVERNMENT PROPERTY AGENCY,PINV975,10327.25
BEIS,ACAS,17/08/2022,Lease Liability,FEP,GOVERNMENT PROPERTY AGENCY,PINV975,33099
BEIS,ACAS,17/08/2022,SERVICE CHARGES,FEP,GOVERNMENT PROPERTY AGENCY,PINV975,10518.5
BEIS,ACAS,17/08/2022,FACILITIES MANAGEMENT,FEP,GOVERNMENT PROPERTY AGENCY,PINV975,29302.5
BEIS,ACAS,22/08/2022,PROFESSIONAL FEES,FEP,GOVERNMENT PROPERTY AGENCY,PINV976,3866.54
BEIS,ACAS,17/08/2022,PROFESSIONAL FEES,FEP,GOVERNMENT PROPERTY AGENCY,PINV977,5268.64
BEIS,ACAS,17/08/2022,SERVICE CHARGES,FEP,GOVERNMENT PROPERTY AGENCY,PINV977,2634.5
BEIS,ACAS,17/08/2022,FACILITIES MANAGEMENT,FEP,GOVERNMENT PROPERTY AGENCY,PINV977,9649.2
BEIS,ACAS,17/08/2022,RATES,FEP,GOVERNMENT PROPERTY AGENCY,PINV977,7365.75
BEIS,ACAS,17/08/2022,Lease Liability,FEP,GOVERNMENT PROPERTY AGENCY,PINV977,46431.23
BEIS,ACAS,17/08/2022,PROFESSIONAL FEES,FEP,GOVERNMENT PROPERTY AGENCY,PINV979,590
BEIS,ACAS,17/08/2022,PROFESSIONAL FEES,FEP,GOVERNMENT PROPERTY AGENCY,PINV979,2632.12
BEIS,ACAS,17/08/2022,RATES,FEP,GOVERNMENT PROPERTY AGENCY,PINV979,7982.25
BEIS,ACAS,17/08/2022,Lease Liability,FEP,GOVERNMENT PROPERTY AGENCY,PINV979,32387.63
BEIS,ACAS,17/08/2022,SERVICE CHARGES,FEP,GOVERNMENT PROPERTY AGENCY,PINV979,4149.41
BEIS,ACAS,17/08/2022,FACILITIES MANAGEMENT,FEP,GOVERNMENT PROPERTY AGENCY,PINV979,2091
BEIS,ACAS,17/08/2022,FACILITIES MANAGEMENT,FEP,GOVERNMENT PROPERTY AGENCY,PINV979,15871.84
BEIS,ACAS,15/09/2022,PERSONAL EXPENSE,NORTH&MID,NAME / DESCRIPTION WITHHELD,EXPS980,311.4
BEIS,ACAS,15/09/2022,PERSONAL EXPENSE,NORTH&MID,NAME / DESCRIPTION WITHHELD,EXPS980,35
BEIS,ACAS,15/09/2022,PERSONAL EXPENSE,NORTH&MID,NAME / DESCRIPTION WITHHELD,EXPS980,5
BEIS,ACAS,15/09/2022,PERSONAL EXPENSE,NORTH&MID,NAME / DESCRIPTION WITHHELD,EXPS980,10
BEIS,ACAS,15/09/2022,PERSONAL EXPENSE,NORTH&MID,NAME / DESCRIPTION WITHHELD,EXPS980,50
BEIS,ACAS,15/09/2022,PERSONAL EXPENSE,NORTH&MID,NAME / DESCRIPTION WITHHELD,EXPS980,25
BEIS,ACAS,15/09/2022,PERSONAL EXPENSE,NORTH&MID,NAME / DESCRIPTION WITHHELD,EXPS980,10
BEIS,ACAS,17/08/2022,PROFESSIONAL FEES,FEP,GOVERNMENT PROPERTY AGENCY,PINV980,8469.42
BEIS,ACAS,17/08/2022,SERVICE CHARGES,FEP,GOVERNMENT PROPERTY AGENCY,PINV980,31058.04
BEIS,ACAS,17/08/2022,FACILITIES MANAGEMENT,FEP,GOVERNMENT PROPERTY AGENCY,PINV980,41995.18
BEIS,ACAS,17/08/2022,RATES,FEP,GOVERNMENT PROPERTY AGENCY,PINV980,29056
BEIS,ACAS,17/08/2022,Lease Liability,FEP,GOVERNMENT PROPERTY AGENCY,PINV980,107421.3
BEIS,ACAS,17/08/2022,PROFESSIONAL FEES,FEP,GOVERNMENT PROPERTY AGENCY,PINV981,708
BEIS,ACAS,17/08/2022,PROFESSIONAL FEES,FEP,GOVERNMENT PROPERTY AGENCY,PINV981,3645
BEIS,ACAS,17/08/2022,SERVICE CHARGES,FEP,GOVERNMENT PROPERTY AGENCY,PINV981,15483.75
BEIS,ACAS,17/08/2022,RATES,FEP,GOVERNMENT PROPERTY AGENCY,PINV981,2875
BEIS,ACAS,17/08/2022,Lease Liability,FEP,GOVERNMENT PROPERTY AGENCY,PINV981,9634.5
BEIS,ACAS,16/09/2022,PERSONAL EXPENSE,SOUTH&LONDON,NAME / DESCRIPTION WITHHELD,EXPS982,326.25
BEIS,ACAS,16/09/2022,PERSONAL EXPENSE,SOUTH&LONDON,NAME / DESCRIPTION WITHHELD,EXPS982,10
BEIS,ACAS,16/09/2022,PERSONAL EXPENSE,SOUTH&LONDON,NAME / DESCRIPTION WITHHELD,EXPS982,30
BEIS,ACAS,16/09/2022,PERSONAL EXPENSE,SOUTH&LONDON,NAME / DESCRIPTION WITHHELD,EXPS982,10
BEIS,ACAS,16/09/2022,PERSONAL EXPENSE,SOUTH&LONDON,NAME / DESCRIPTION WITHHELD,EXPS982,70
BEIS,ACAS,30/08/2022,Lease Liability,FEP,STUDENT LOANS COMPANY LTD,PINV982,21599.99
BEIS,ACAS,30/08/2022,Lease Liability,FEP,STUDENT LOANS COMPANY LTD,PINV983,41400
BEIS,ACAS,16/09/2022,PERSONAL EXPENSE,SCOTLAND,NAME / DESCRIPTION WITHHELD,EXPS984,225.9
BEIS,ACAS,16/09/2022,PERSONAL EXPENSE,SCOTLAND,NAME / DESCRIPTION WITHHELD,EXPS984,5
BEIS,ACAS,16/09/2022,PERSONAL EXPENSE,SCOTLAND,NAME / DESCRIPTION WITHHELD,EXPS984,35
BEIS,ACAS,16/09/2022,PERSONAL EXPENSE,SCOTLAND,NAME / DESCRIPTION WITHHELD,EXPS984,20
BEIS,ACAS,31/08/2022,PUBLIC TRANSPORT & PARKING,STRATEGY,CORPORATE TRAVEL MANAGEMENTLIMITED,PINV984,131.15
BEIS,ACAS,31/08/2022,PUBLIC TRANSPORT & PARKING,STRATEGY,CORPORATE TRAVEL MANAGEMENTLIMITED,PINV984,180.45
BEIS,ACAS,31/08/2022,PUBLIC TRANSPORT & PARKING,CO,CORPORATE TRAVEL MANAGEMENTLIMITED,PINV984,19.95
BEIS,ACAS,31/08/2022,PUBLIC TRANSPORT & PARKING,CO,CORPORATE TRAVEL MANAGEMENTLIMITED,PINV984,37.65
BEIS,ACAS,31/08/2022,PUBLIC TRANSPORT & PARKING,DELIVERY,CORPORATE TRAVEL MANAGEMENTLIMITED,PINV984,88.05
BEIS,ACAS,31/08/2022,PUBLIC TRANSPORT & PARKING,SPPC,CORPORATE TRAVEL MANAGEMENTLIMITED,PINV984,207.25
BEIS,ACAS,31/08/2022,HOTEL EXPENSES,DELIVERY,CORPORATE TRAVEL MANAGEMENTLIMITED,PINV984,1.12
BEIS,ACAS,31/08/2022,PUBLIC TRANSPORT & PARKING,DELIVERY,CORPORATE TRAVEL MANAGEMENTLIMITED,PINV984,207.25
BEIS,ACAS,31/08/2022,PUBLIC TRANSPORT & PARKING,NORTH&MID,CORPORATE TRAVEL MANAGEMENTLIMITED,PINV984,56.85
BEIS,ACAS,31/08/2022,PUBLIC TRANSPORT & PARKING,DELIVERY,CORPORATE TRAVEL MANAGEMENTLIMITED,PINV984,71.55
BEIS,ACAS,31/08/2022,PUBLIC TRANSPORT & PARKING,NORTH&MID,CORPORATE TRAVEL MANAGEMENTLIMITED,PINV984,28.05
BEIS,ACAS,31/08/2022,HOTEL EXPENSES,SPPC,CORPORATE TRAVEL MANAGEMENTLIMITED,PINV984,141.12
BEIS,ACAS,31/08/2022,PUBLIC TRANSPORT & PARKING,DELIVERY,CORPORATE TRAVEL MANAGEMENTLIMITED,PINV984,63.75
BEIS,ACAS,31/08/2022,PUBLIC TRANSPORT & PARKING,STRATEGY,CORPORATE TRAVEL MANAGEMENTLIMITED,PINV984,122.95
BEIS,ACAS,31/08/2022,HOTEL EXPENSES,WALES&MID,CORPORATE TRAVEL MANAGEMENTLIMITED,PINV984,63.46
BEIS,ACAS,31/08/2022,PUBLIC TRANSPORT & PARKING,DELIVERY,CORPORATE TRAVEL MANAGEMENTLIMITED,PINV984,28.25
BEIS,ACAS,31/08/2022,HOTEL EXPENSES,DELIVERY,CORPORATE TRAVEL MANAGEMENTLIMITED,PINV984,137.62
BEIS,ACAS,31/08/2022,PUBLIC TRANSPORT & PARKING,DELIVERY,CORPORATE TRAVEL MANAGEMENTLIMITED,PINV984,56.15
BEIS,ACAS,31/08/2022,PUBLIC TRANSPORT & PARKING,DELIVERY,CORPORATE TRAVEL MANAGEMENTLIMITED,PINV984,57.85
BEIS,ACAS,31/08/2022,HOTEL EXPENSES,ODHR,CORPORATE TRAVEL MANAGEMENTLIMITED,PINV984,320.82
BEIS,ACAS,31/08/2022,PUBLIC TRANSPORT & PARKING,ODHR,CORPORATE TRAVEL MANAGEMENTLIMITED,PINV984,195.05
BEIS,ACAS,31/08/2022,PUBLIC TRANSPORT & PARKING,DDAT,CORPORATE TRAVEL MANAGEMENTLIMITED,PINV984,137.45
BEIS,ACAS,31/08/2022,PUBLIC TRANSPORT & PARKING,WALES&MID,CORPORATE TRAVEL MANAGEMENTLIMITED,PINV984,21.25
BEIS,ACAS,31/08/2022,PUBLIC TRANSPORT & PARKING,WALES&MID,CORPORATE TRAVEL MANAGEMENTLIMITED,PINV984,98.25
BEIS,ACAS,31/08/2022,PUBLIC TRANSPORT & PARKING,DELIVERY,CORPORATE TRAVEL MANAGEMENTLIMITED,PINV984,150.25
BEIS,ACAS,31/08/2022,HOTEL EXPENSES,WALES&MID,CORPORATE TRAVEL MANAGEMENTLIMITED,PINV984,209.17
BEIS,ACAS,31/08/2022,PUBLIC TRANSPORT & PARKING,DELIVERY,CORPORATE TRAVEL MANAGEMENTLIMITED,PINV984,98.55
BEIS,ACAS,31/08/2022,PUBLIC TRANSPORT & PARKING,DELIVERY,CORPORATE TRAVEL MANAGEMENTLIMITED,PINV984,36.75
BEIS,ACAS,31/08/2022,PUBLIC TRANSPORT & PARKING,ODHR,CORPORATE TRAVEL MANAGEMENTLIMITED,PINV984,29.65
BEIS,ACAS,31/08/2022,PUBLIC TRANSPORT & PARKING,SPPC,CORPORATE TRAVEL MANAGEMENTLIMITED,PINV984,188.95
BEIS,ACAS,31/08/2022,PUBLIC TRANSPORT & PARKING,SPPC,CORPORATE TRAVEL MANAGEMENTLIMITED,PINV984,197.25
BEIS,ACAS,31/08/2022,PUBLIC TRANSPORT & PARKING,SPPC,CORPORATE TRAVEL MANAGEMENTLIMITED,PINV984,63.05
BEIS,ACAS,31/08/2022,PUBLIC TRANSPORT & PARKING,SPPC,CORPORATE TRAVEL MANAGEMENTLIMITED,PINV984,19.25
BEIS,ACAS,31/08/2022,PUBLIC TRANSPORT & PARKING,SPPC,CORPORATE TRAVEL MANAGEMENTLIMITED,PINV984,8.55
BEIS,ACAS,31/08/2022,PUBLIC TRANSPORT & PARKING,SOUTH&LONDON,CORPORATE TRAVEL MANAGEMENTLIMITED,PINV984,144.25
BEIS,ACAS,31/08/2022,HOTEL EXPENSES,SOUTH&LONDON,CORPORATE TRAVEL MANAGEMENTLIMITED,PINV984,83.46
BEIS,ACAS,31/08/2022,PUBLIC TRANSPORT & PARKING,SOUTH&LONDON,CORPORATE TRAVEL MANAGEMENTLIMITED,PINV984,88.45
BEIS,ACAS,31/08/2022,PUBLIC TRANSPORT & PARKING,SPPC,CORPORATE TRAVEL MANAGEMENTLIMITED,PINV984,39.75
BEIS,ACAS,31/08/2022,PUBLIC TRANSPORT & PARKING,SPPC,CORPORATE TRAVEL MANAGEMENTLIMITED,PINV984,100.75
BEIS,ACAS,31/08/2022,PUBLIC TRANSPORT & PARKING,ODHR,CORPORATE TRAVEL MANAGEMENTLIMITED,PINV984,-175.3
BEIS,ACAS,31/08/2022,HOTEL EXPENSES,WALES&MID,CORPORATE TRAVEL MANAGEMENTLIMITED,PINV984,1.12
BEIS,ACAS,31/08/2022,PUBLIC TRANSPORT & PARKING,DELIVERY,CORPORATE TRAVEL MANAGEMENTLIMITED,PINV984,8.25
BEIS,ACAS,31/08/2022,PUBLIC TRANSPORT & PARKING,DELIVERY,CORPORATE TRAVEL MANAGEMENTLIMITED,PINV984,259.25
BEIS,ACAS,31/08/2022,PUBLIC TRANSPORT & PARKING,DELIVERY,CORPORATE TRAVEL MANAGEMENTLIMITED,PINV984,259.12
BEIS,ACAS,31/08/2022,PUBLIC TRANSPORT & PARKING,DELIVERY,CORPORATE TRAVEL MANAGEMENTLIMITED,PINV984,259.13
BEIS,ACAS,31/08/2022,PUBLIC TRANSPORT & PARKING,WALES&MID,CORPORATE TRAVEL MANAGEMENTLIMITED,PINV984,73.25
BEIS,ACAS,31/08/2022,PUBLIC TRANSPORT & PARKING,SPPC,CORPORATE TRAVEL MANAGEMENTLIMITED,PINV984,149.55
BEIS,ACAS,31/08/2022,PUBLIC TRANSPORT & PARKING,SPPC,CORPORATE TRAVEL MANAGEMENTLIMITED,PINV984,240.25
BEIS,ACAS,31/08/2022,PUBLIC TRANSPORT & PARKING,SOUTH&LONDON,CORPORATE TRAVEL MANAGEMENTLIMITED,PINV984,149.95
BEIS,ACAS,31/08/2022,PUBLIC TRANSPORT & PARKING,SOUTH&LONDON,CORPORATE TRAVEL MANAGEMENTLIMITED,PINV984,238.45
BEIS,ACAS,31/08/2022,PUBLIC TRANSPORT & PARKING,DELIVERY,CORPORATE TRAVEL MANAGEMENTLIMITED,PINV984,147.8
BEIS,ACAS,31/08/2022,HOTEL EXPENSES,NORTH&MID,CORPORATE TRAVEL MANAGEMENTLIMITED,PINV984,111.12
BEIS,ACAS,31/08/2022,HOTEL EXPENSES,WALES&MID,CORPORATE TRAVEL MANAGEMENTLIMITED,PINV984,0.96
BEIS,ACAS,31/08/2022,CO&CAC Non Staff T&S,CAC,CORPORATE TRAVEL MANAGEMENTLIMITED,PINV984,88.15
BEIS,ACAS,31/08/2022,PUBLIC TRANSPORT & PARKING,WALES&MID,CORPORATE TRAVEL MANAGEMENTLIMITED,PINV984,128.85
BEIS,ACAS,31/08/2022,PUBLIC TRANSPORT & PARKING,DELIVERY,CORPORATE TRAVEL MANAGEMENTLIMITED,PINV984,247.05
BEIS,ACAS,31/08/2022,PUBLIC TRANSPORT & PARKING,ODHR,CORPORATE TRAVEL MANAGEMENTLIMITED,PINV984,195.05
BEIS,ACAS,31/08/2022,PUBLIC TRANSPORT & PARKING,DELIVERY,CORPORATE TRAVEL MANAGEMENTLIMITED,PINV984,-211.2
BEIS,ACAS,31/08/2022,PUBLIC TRANSPORT & PARKING,DELIVERY,CORPORATE TRAVEL MANAGEMENTLIMITED,PINV984,56.15
BEIS,ACAS,31/08/2022,PUBLIC TRANSPORT & PARKING,STRATEGY,CORPORATE TRAVEL MANAGEMENTLIMITED,PINV984,177.65
BEIS,ACAS,31/08/2022,HOTEL EXPENSES,DELIVERY,CORPORATE TRAVEL MANAGEMENTLIMITED,PINV984,87.12
BEIS,ACAS,31/08/2022,HOTEL EXPENSES,NORTH&MID,CORPORATE TRAVEL MANAGEMENTLIMITED,PINV984,144.37
BEIS,ACAS,31/08/2022,HOTEL EXPENSES,DELIVERY,CORPORATE TRAVEL MANAGEMENTLIMITED,PINV984,144.37
BEIS,ACAS,31/08/2022,HOTEL EXPENSES,DELIVERY,CORPORATE TRAVEL MANAGEMENTLIMITED,PINV984,87.12
BEIS,ACAS,31/08/2022,HOTEL EXPENSES,NORTH&MID,CORPORATE TRAVEL MANAGEMENTLIMITED,PINV984,144.37
BEIS,ACAS,31/08/2022,HOTEL EXPENSES,SOUTH&LONDON,CORPORATE TRAVEL MANAGEMENTLIMITED,PINV984,83.46
BEIS,ACAS,31/08/2022,HOTEL EXPENSES,DELIVERY,CORPORATE TRAVEL MANAGEMENTLIMITED,PINV984,87.12
BEIS,ACAS,31/08/2022,PUBLIC TRANSPORT & PARKING,ODHR,CORPORATE TRAVEL MANAGEMENTLIMITED,PINV984,-121
BEIS,ACAS,31/08/2022,PUBLIC TRANSPORT & PARKING,ODHR,CORPORATE TRAVEL MANAGEMENTLIMITED,PINV984,-121
BEIS,ACAS,31/08/2022,PUBLIC TRANSPORT & PARKING,ODHR,CORPORATE TRAVEL MANAGEMENTLIMITED,PINV984,-85.6
BEIS,ACAS,31/08/2022,PUBLIC TRANSPORT & PARKING,ODHR,CORPORATE TRAVEL MANAGEMENTLIMITED,PINV984,-2.6
BEIS,ACAS,31/08/2022,PUBLIC TRANSPORT & PARKING,SPPC,CORPORATE TRAVEL MANAGEMENTLIMITED,PINV984,98.35
BEIS,ACAS,31/08/2022,PUBLIC TRANSPORT & PARKING,NORTH&MID,CORPORATE TRAVEL MANAGEMENTLIMITED,PINV984,123.95
BEIS,ACAS,31/08/2022,PUBLIC TRANSPORT & PARKING,STRATEGY,CORPORATE TRAVEL MANAGEMENTLIMITED,PINV984,223.25
BEIS,ACAS,31/08/2022,HOTEL EXPENSES,NORTH&MID,CORPORATE TRAVEL MANAGEMENTLIMITED,PINV984,92.63
BEIS,ACAS,31/08/2022,PUBLIC TRANSPORT & PARKING,ODHR,CORPORATE TRAVEL MANAGEMENTLIMITED,PINV984,250.25
BEIS,ACAS,31/08/2022,PUBLIC TRANSPORT & PARKING,DELIVERY,CORPORATE TRAVEL MANAGEMENTLIMITED,PINV984,57.35
BEIS,ACAS,31/08/2022,PUBLIC TRANSPORT & PARKING,DELIVERY,CORPORATE TRAVEL MANAGEMENTLIMITED,PINV984,150.45
BEIS,ACAS,31/08/2022,HOTEL EXPENSES,NORTH&MID,CORPORATE TRAVEL MANAGEMENTLIMITED,PINV984,92.63
BEIS,ACAS,31/08/2022,HOTEL EXPENSES,WALES&MID,CORPORATE TRAVEL MANAGEMENTLIMITED,PINV984,0.96
BEIS,ACAS,31/08/2022,HOTEL EXPENSES,DELIVERY,CORPORATE TRAVEL MANAGEMENTLIMITED,PINV984,83.94
BEIS,ACAS,31/08/2022,PUBLIC TRANSPORT & PARKING,SOUTH&LONDON,CORPORATE TRAVEL MANAGEMENTLIMITED,PINV984,92.55
BEIS,ACAS,31/08/2022,PUBLIC TRANSPORT & PARKING,WALES&MID,CORPORATE TRAVEL MANAGEMENTLIMITED,PINV984,46.15
BEIS,ACAS,31/08/2022,PUBLIC TRANSPORT & PARKING,WALES&MID,CORPORATE TRAVEL MANAGEMENTLIMITED,PINV984,178.45
BEIS,ACAS,31/08/2022,PUBLIC TRANSPORT & PARKING,WALES&MID,CORPORATE TRAVEL MANAGEMENTLIMITED,PINV984,126.35
BEIS,ACAS,31/08/2022,PUBLIC TRANSPORT & PARKING,NORTH&MID,CORPORATE TRAVEL MANAGEMENTLIMITED,PINV984,68.45
BEIS,ACAS,31/08/2022,PUBLIC TRANSPORT & PARKING,NORTH&MID,CORPORATE TRAVEL MANAGEMENTLIMITED,PINV984,46.45
BEIS,ACAS,31/08/2022,PUBLIC TRANSPORT & PARKING,SPPC,CORPORATE TRAVEL MANAGEMENTLIMITED,PINV984,212.85
BEIS,ACAS,31/08/2022,PUBLIC TRANSPORT & PARKING,DELIVERY,CORPORATE TRAVEL MANAGEMENTLIMITED,PINV984,248.25
BEIS,ACAS,31/08/2022,PUBLIC TRANSPORT & PARKING,SPPC,CORPORATE TRAVEL MANAGEMENTLIMITED,PINV984,139.25
BEIS,ACAS,31/08/2022,HOTEL EXPENSES,SOUTH&LONDON,CORPORATE TRAVEL MANAGEMENTLIMITED,PINV984,57.63
BEIS,ACAS,31/08/2022,HOTEL EXPENSES,SPPC,CORPORATE TRAVEL MANAGEMENTLIMITED,PINV984,141.12
BEIS,ACAS,31/08/2022,HOTEL EXPENSES,SPPC,CORPORATE TRAVEL MANAGEMENTLIMITED,PINV984,141.12
BEIS,ACAS,31/08/2022,PUBLIC TRANSPORT & PARKING,STRATEGY,CORPORATE TRAVEL MANAGEMENTLIMITED,PINV984,181.55
BEIS,ACAS,31/08/2022,PUBLIC TRANSPORT & PARKING,DELIVERY,CORPORATE TRAVEL MANAGEMENTLIMITED,PINV984,94.25
BEIS,ACAS,31/08/2022,PUBLIC TRANSPORT & PARKING,DELIVERY,CORPORATE TRAVEL MANAGEMENTLIMITED,PINV984,26.25
BEIS,ACAS,31/08/2022,PUBLIC TRANSPORT & PARKING,DELIVERY,CORPORATE TRAVEL MANAGEMENTLIMITED,PINV984,124.85
BEIS,ACAS,31/08/2022,PUBLIC TRANSPORT & PARKING,DELIVERY,CORPORATE TRAVEL MANAGEMENTLIMITED,PINV984,47.95
BEIS,ACAS,31/08/2022,PUBLIC TRANSPORT & PARKING,DELIVERY,CORPORATE TRAVEL MANAGEMENTLIMITED,PINV984,42.35
BEIS,ACAS,31/08/2022,PUBLIC TRANSPORT & PARKING,NORTH&MID,CORPORATE TRAVEL MANAGEMENTLIMITED,PINV984,36.45
BEIS,ACAS,31/08/2022,PUBLIC TRANSPORT & PARKING,DELIVERY,CORPORATE TRAVEL MANAGEMENTLIMITED,PINV984,4.55
BEIS,ACAS,31/08/2022,PUBLIC TRANSPORT & PARKING,DELIVERY,CORPORATE TRAVEL MANAGEMENTLIMITED,PINV984,42.35
BEIS,ACAS,31/08/2022,PUBLIC TRANSPORT & PARKING,DELIVERY,CORPORATE TRAVEL MANAGEMENTLIMITED,PINV984,109.6
BEIS,ACAS,31/08/2022,PUBLIC TRANSPORT & PARKING,DELIVERY,CORPORATE TRAVEL MANAGEMENTLIMITED,PINV984,-59.3
BEIS,ACAS,31/08/2022,PUBLIC TRANSPORT & PARKING,DELIVERY,CORPORATE TRAVEL MANAGEMENTLIMITED,PINV984,210.95
BEIS,ACAS,31/08/2022,PUBLIC TRANSPORT & PARKING,DELIVERY,CORPORATE TRAVEL MANAGEMENTLIMITED,PINV984,99.75
BEIS,ACAS,31/08/2022,PUBLIC TRANSPORT & PARKING,ODHR,CORPORATE TRAVEL MANAGEMENTLIMITED,PINV984,-87.4
BEIS,ACAS,31/08/2022,PUBLIC TRANSPORT & PARKING,NORTH&MID,CORPORATE TRAVEL MANAGEMENTLIMITED,PINV984,93.15
BEIS,ACAS,31/08/2022,HOTEL EXPENSES,DELIVERY,CORPORATE TRAVEL MANAGEMENTLIMITED,PINV984,83.94
BEIS,ACAS,31/08/2022,PUBLIC TRANSPORT & PARKING,STRATEGY,CORPORATE TRAVEL MANAGEMENTLIMITED,PINV984,-10.3
BEIS,ACAS,31/08/2022,PUBLIC TRANSPORT & PARKING,DELIVERY,CORPORATE TRAVEL MANAGEMENTLIMITED,PINV984,55.25
BEIS,ACAS,31/08/2022,PUBLIC TRANSPORT & PARKING,DELIVERY,CORPORATE TRAVEL MANAGEMENTLIMITED,PINV984,43.65
BEIS,ACAS,31/08/2022,HOTEL EXPENSES,DELIVERY,CORPORATE TRAVEL MANAGEMENTLIMITED,PINV984,161.12
BEIS,ACAS,31/08/2022,HOTEL EXPENSES,DELIVERY,CORPORATE TRAVEL MANAGEMENTLIMITED,PINV984,173.12
BEIS,ACAS,31/08/2022,HOTEL EXPENSES,DELIVERY,CORPORATE TRAVEL MANAGEMENTLIMITED,PINV984,145.73
BEIS,ACAS,31/08/2022,HOTEL EXPENSES,DELIVERY,CORPORATE TRAVEL MANAGEMENTLIMITED,PINV984,147.08
BEIS,ACAS,31/08/2022,HOTEL EXPENSES,DELIVERY,CORPORATE TRAVEL MANAGEMENTLIMITED,PINV984,173.12
BEIS,ACAS,31/08/2022,HOTEL EXPENSES,NORTH&MID,CORPORATE TRAVEL MANAGEMENTLIMITED,PINV984,173.12
BEIS,ACAS,31/08/2022,HOTEL EXPENSES,ODHR,CORPORATE TRAVEL MANAGEMENTLIMITED,PINV984,162.12
BEIS,ACAS,31/08/2022,PUBLIC TRANSPORT & PARKING,CO,CORPORATE TRAVEL MANAGEMENTLIMITED,PINV984,19.95
BEIS,ACAS,31/08/2022,HOTEL EXPENSES,DDAT,CORPORATE TRAVEL MANAGEMENTLIMITED,PINV984,1.12
BEIS,ACAS,31/08/2022,PUBLIC TRANSPORT & PARKING,STRATEGY,CORPORATE TRAVEL MANAGEMENTLIMITED,PINV984,205.15
BEIS,ACAS,31/08/2022,HOTEL EXPENSES,STRATEGY,CORPORATE TRAVEL MANAGEMENTLIMITED,PINV984,381.5
BEIS,ACAS,31/08/2022,PUBLIC TRANSPORT & PARKING,DDAT,CORPORATE TRAVEL MANAGEMENTLIMITED,PINV984,27.65
BEIS,ACAS,31/08/2022,PUBLIC TRANSPORT & PARKING,DDAT,CORPORATE TRAVEL MANAGEMENTLIMITED,PINV984,32.95
BEIS,ACAS,31/08/2022,PUBLIC TRANSPORT & PARKING,STRATEGY,CORPORATE TRAVEL MANAGEMENTLIMITED,PINV984,154.75
BEIS,ACAS,31/08/2022,PUBLIC TRANSPORT & PARKING,ODHR,CORPORATE TRAVEL MANAGEMENTLIMITED,PINV984,-87.4
BEIS,ACAS,31/08/2022,PUBLIC TRANSPORT & PARKING,ODHR,CORPORATE TRAVEL MANAGEMENTLIMITED,PINV984,89.05
BEIS,ACAS,31/08/2022,PUBLIC TRANSPORT & PARKING,ODHR,CORPORATE TRAVEL MANAGEMENTLIMITED,PINV984,28.85
BEIS,ACAS,31/08/2022,HOTEL EXPENSES,SOUTH&LONDON,CORPORATE TRAVEL MANAGEMENTLIMITED,PINV984,0.96
BEIS,ACAS,31/08/2022,HOTEL EXPENSES,SOUTH&LONDON,CORPORATE TRAVEL MANAGEMENTLIMITED,PINV984,0.96
BEIS,ACAS,31/08/2022,CO&CAC Non Staff T&S,CAC,CORPORATE TRAVEL MANAGEMENTLIMITED,PINV984,87.2
BEIS,ACAS,31/08/2022,PUBLIC TRANSPORT & PARKING,STRATEGY,CORPORATE TRAVEL MANAGEMENTLIMITED,PINV984,129.85
BEIS,ACAS,31/08/2022,PUBLIC TRANSPORT & PARKING,NORTH&MID,CORPORATE TRAVEL MANAGEMENTLIMITED,PINV984,67.35
BEIS,ACAS,31/08/2022,PUBLIC TRANSPORT & PARKING,DDAT,CORPORATE TRAVEL MANAGEMENTLIMITED,PINV984,98.35
BEIS,ACAS,31/08/2022,PUBLIC TRANSPORT & PARKING,SCOTLAND,CORPORATE TRAVEL MANAGEMENTLIMITED,PINV984,94.25
BEIS,ACAS,31/08/2022,PUBLIC TRANSPORT & PARKING,SPPC,CORPORATE TRAVEL MANAGEMENTLIMITED,PINV984,75.75
BEIS,ACAS,31/08/2022,HOTEL EXPENSES,DELIVERY,CORPORATE TRAVEL MANAGEMENTLIMITED,PINV984,141.12
BEIS,ACAS,31/08/2022,PUBLIC TRANSPORT & PARKING,SPPC,CORPORATE TRAVEL MANAGEMENTLIMITED,PINV984,-58.6
BEIS,ACAS,31/08/2022,PUBLIC TRANSPORT & PARKING,SPPC,CORPORATE TRAVEL MANAGEMENTLIMITED,PINV984,-58.6
BEIS,ACAS,31/08/2022,PUBLIC TRANSPORT & PARKING,NORTH&MID,CORPORATE TRAVEL MANAGEMENTLIMITED,PINV984,-18.3
BEIS,ACAS,31/08/2022,HOTEL EXPENSES,DDAT,CORPORATE TRAVEL MANAGEMENTLIMITED,PINV984,116.82
BEIS,ACAS,31/08/2022,HOTEL EXPENSES,NORTH&MID,CORPORATE TRAVEL MANAGEMENTLIMITED,PINV984,259.12
BEIS,ACAS,31/08/2022,PUBLIC TRANSPORT & PARKING,DELIVERY,CORPORATE TRAVEL MANAGEMENTLIMITED,PINV984,-18.5
BEIS,ACAS,31/08/2022,PUBLIC TRANSPORT & PARKING,DELIVERY,CORPORATE TRAVEL MANAGEMENTLIMITED,PINV984,-145.8
BEIS,ACAS,31/08/2022,PUBLIC TRANSPORT & PARKING,DELIVERY,CORPORATE TRAVEL MANAGEMENTLIMITED,PINV984,-140
BEIS,ACAS,31/08/2022,PUBLIC TRANSPORT & PARKING,DELIVERY,CORPORATE TRAVEL MANAGEMENTLIMITED,PINV984,-7.6
BEIS,ACAS,31/08/2022,PUBLIC TRANSPORT & PARKING,DELIVERY,CORPORATE TRAVEL MANAGEMENTLIMITED,PINV984,-141.2
BEIS,ACAS,31/08/2022,HOTEL EXPENSES,DELIVERY,CORPORATE TRAVEL MANAGEMENTLIMITED,PINV984,142.62
BEIS,ACAS,31/08/2022,HOTEL EXPENSES,NORTH&MID,CORPORATE TRAVEL MANAGEMENTLIMITED,PINV984,75.96
BEIS,ACAS,31/08/2022,HOTEL EXPENSES,SPPC,CORPORATE TRAVEL MANAGEMENTLIMITED,PINV984,203.12
BEIS,ACAS,31/08/2022,PUBLIC TRANSPORT & PARKING,SOUTH&LONDON,CORPORATE TRAVEL MANAGEMENTLIMITED,PINV984,115.85
BEIS,ACAS,31/08/2022,PUBLIC TRANSPORT & PARKING,DELIVERY,CORPORATE TRAVEL MANAGEMENTLIMITED,PINV984,25.85
BEIS,ACAS,31/08/2022,PUBLIC TRANSPORT & PARKING,DELIVERY,CORPORATE TRAVEL MANAGEMENTLIMITED,PINV984,25.85
BEIS,ACAS,31/08/2022,PUBLIC TRANSPORT & PARKING,SPPC,CORPORATE TRAVEL MANAGEMENTLIMITED,PINV984,247.75
BEIS,ACAS,31/08/2022,PUBLIC TRANSPORT & PARKING,DELIVERY,CORPORATE TRAVEL MANAGEMENTLIMITED,PINV984,97.55
BEIS,ACAS,31/08/2022,PUBLIC TRANSPORT & PARKING,DELIVERY,CORPORATE TRAVEL MANAGEMENTLIMITED,PINV984,2.75
BEIS,ACAS,31/08/2022,PUBLIC TRANSPORT & PARKING,DELIVERY,CORPORATE TRAVEL MANAGEMENTLIMITED,PINV984,36.25
BEIS,ACAS,31/08/2022,PUBLIC TRANSPORT & PARKING,DELIVERY,CORPORATE TRAVEL MANAGEMENTLIMITED,PINV984,36.75
BEIS,ACAS,31/08/2022,HOTEL EXPENSES,SOUTH&LONDON,CORPORATE TRAVEL MANAGEMENTLIMITED,PINV984,149.29
BEIS,ACAS,31/08/2022,HOTEL EXPENSES,WALES&MID,CORPORATE TRAVEL MANAGEMENTLIMITED,PINV984,1.12
BEIS,ACAS,31/08/2022,PUBLIC TRANSPORT & PARKING,DELIVERY,CORPORATE TRAVEL MANAGEMENTLIMITED,PINV984,-68
BEIS,ACAS,31/08/2022,PUBLIC TRANSPORT & PARKING,NORTH&MID,CORPORATE TRAVEL MANAGEMENTLIMITED,PINV984,32.35
BEIS,ACAS,31/08/2022,CO&CAC Non Staff T&S,CAC,CORPORATE TRAVEL MANAGEMENTLIMITED,PINV984,87.2
BEIS,ACAS,31/08/2022,PUBLIC TRANSPORT & PARKING,DELIVERY,CORPORATE TRAVEL MANAGEMENTLIMITED,PINV984,179.25
BEIS,ACAS,31/08/2022,PUBLIC TRANSPORT & PARKING,WALES&MID,CORPORATE TRAVEL MANAGEMENTLIMITED,PINV984,82.25
BEIS,ACAS,31/08/2022,PUBLIC TRANSPORT & PARKING,NORTH&MID,CORPORATE TRAVEL MANAGEMENTLIMITED,PINV984,31.35
BEIS,ACAS,31/08/2022,HOTEL EXPENSES,SCOTLAND,CORPORATE TRAVEL MANAGEMENTLIMITED,PINV984,51.79
BEIS,ACAS,31/08/2022,PUBLIC TRANSPORT & PARKING,NORTH&MID,CORPORATE TRAVEL MANAGEMENTLIMITED,PINV984,15.45
BEIS,ACAS,31/08/2022,PUBLIC TRANSPORT & PARKING,SPPC,CORPORATE TRAVEL MANAGEMENTLIMITED,PINV984,115.15
BEIS,ACAS,31/08/2022,HOTEL EXPENSES,NORTH&MID,CORPORATE TRAVEL MANAGEMENTLIMITED,PINV984,75.44
BEIS,ACAS,31/08/2022,PUBLIC TRANSPORT & PARKING,SPPC,CORPORATE TRAVEL MANAGEMENTLIMITED,PINV984,197.45
BEIS,ACAS,31/08/2022,PUBLIC TRANSPORT & PARKING,STRATEGY,CORPORATE TRAVEL MANAGEMENTLIMITED,PINV984,100.75
BEIS,ACAS,31/08/2022,PUBLIC TRANSPORT & PARKING,STRATEGY,CORPORATE TRAVEL MANAGEMENTLIMITED,PINV984,39.75
BEIS,ACAS,31/08/2022,PUBLIC TRANSPORT & PARKING,SOUTH&LONDON,CORPORATE TRAVEL MANAGEMENTLIMITED,PINV984,40.65
BEIS,ACAS,31/08/2022,PUBLIC TRANSPORT & PARKING,NORTH&MID,CORPORATE TRAVEL MANAGEMENTLIMITED,PINV984,93.15
BEIS,ACAS,31/08/2022,PUBLIC TRANSPORT & PARKING,SPPC,CORPORATE TRAVEL MANAGEMENTLIMITED,PINV984,273.25
BEIS,ACAS,31/08/2022,PUBLIC TRANSPORT & PARKING,SPPC,CORPORATE TRAVEL MANAGEMENTLIMITED,PINV984,54.15
BEIS,ACAS,31/08/2022,HOTEL EXPENSES,ODHR,CORPORATE TRAVEL MANAGEMENTLIMITED,PINV984,1.12
BEIS,ACAS,31/08/2022,PUBLIC TRANSPORT & PARKING,DELIVERY,CORPORATE TRAVEL MANAGEMENTLIMITED,PINV984,60.15
BEIS,ACAS,31/08/2022,CO&CAC Non Staff T&S,CAC,CORPORATE TRAVEL MANAGEMENTLIMITED,PINV984,87.2
BEIS,ACAS,31/08/2022,PUBLIC TRANSPORT & PARKING,DELIVERY,CORPORATE TRAVEL MANAGEMENTLIMITED,PINV984,25.85
BEIS,ACAS,31/08/2022,PUBLIC TRANSPORT & PARKING,ODHR,CORPORATE TRAVEL MANAGEMENTLIMITED,PINV984,62.55
BEIS,ACAS,31/08/2022,PUBLIC TRANSPORT & PARKING,WALES&MID,CORPORATE TRAVEL MANAGEMENTLIMITED,PINV984,299.45
BEIS,ACAS,31/08/2022,PUBLIC TRANSPORT & PARKING,DELIVERY,CORPORATE TRAVEL MANAGEMENTLIMITED,PINV984,111.25
BEIS,ACAS,31/08/2022,PUBLIC TRANSPORT & PARKING,DELIVERY,CORPORATE TRAVEL MANAGEMENTLIMITED,PINV984,111.25
BEIS,ACAS,31/08/2022,PUBLIC TRANSPORT & PARKING,DELIVERY,CORPORATE TRAVEL MANAGEMENTLIMITED,PINV984,72.25
BEIS,ACAS,17/08/2022,Lease Liability,FEP,GOVERNMENT PROPERTY AGENCY,PINV985,5230.99
BEIS,ACAS,17/08/2022,Lease Liability,FEP,GOVERNMENT PROPERTY AGENCY,PINV985,107262.6
BEIS,ACAS,17/08/2022,RATES,FEP,GOVERNMENT PROPERTY AGENCY,PINV985,2358.39
BEIS,ACAS,17/08/2022,RATES,FEP,GOVERNMENT PROPERTY AGENCY,PINV985,48349.11
BEIS,ACAS,17/08/2022,SERVICE CHARGES,FEP,GOVERNMENT PROPERTY AGENCY,PINV985,2791.06
BEIS,ACAS,17/08/2022,SERVICE CHARGES,FEP,GOVERNMENT PROPERTY AGENCY,PINV985,57241.44
BEIS,ACAS,17/08/2022,FACILITIES MANAGEMENT,FEP,GOVERNMENT PROPERTY AGENCY,PINV985,19.21
BEIS,ACAS,17/08/2022,FACILITIES MANAGEMENT,FEP,GOVERNMENT PROPERTY AGENCY,PINV985,406.19
BEIS,ACAS,17/08/2022,PROFESSIONAL FEES,FEP,GOVERNMENT PROPERTY AGENCY,PINV985,301.76
BEIS,ACAS,17/08/2022,PROFESSIONAL FEES,FEP,GOVERNMENT PROPERTY AGENCY,PINV985,6194.7
BEIS,ACAS,17/08/2022,SERVICE CHARGES,FEP,GOVERNMENT PROPERTY AGENCY,PINV985,-561.13
BEIS,ACAS,17/08/2022,SERVICE CHARGES,FEP,GOVERNMENT PROPERTY AGENCY,PINV985,-11505.92
BEIS,ACAS,17/08/2022,PROFESSIONAL FEES,FEP,GOVERNMENT PROPERTY AGENCY,PINV986,2545.79
BEIS,ACAS,17/08/2022,SERVICE CHARGES,FEP,GOVERNMENT PROPERTY AGENCY,PINV986,253.38
BEIS,ACAS,17/08/2022,FACILITIES MANAGEMENT,FEP,GOVERNMENT PROPERTY AGENCY,PINV986,1937.6
BEIS,ACAS,17/08/2022,RATES,FEP,GOVERNMENT PROPERTY AGENCY,PINV986,1332.79
BEIS,ACAS,17/08/2022,Lease Liability,FEP,GOVERNMENT PROPERTY AGENCY,PINV986,4427
BEIS,ACAS,23/08/2022,SOFTWARE & LICENCES,DELIVERY,ZOOM VIDEO COMMUNICATIONS INC,PINV987,68.95
BEIS,ACAS,23/08/2022,SOFTWARE & LICENCES,DELIVERY,ZOOM VIDEO COMMUNICATIONS INC,PINV987,137.9
BEIS,ACAS,23/08/2022,SOFTWARE & LICENCES,ODHR,ZOOM VIDEO COMMUNICATIONS INC,PINV987,13.79
BEIS,ACAS,23/08/2022,SOFTWARE & LICENCES,DELIVERY,ZOOM VIDEO COMMUNICATIONS INC,PINV987,151.69
BEIS,ACAS,23/08/2022,SOFTWARE & LICENCES,DELIVERY,ZOOM VIDEO COMMUNICATIONS INC,PINV987,13.79
BEIS,ACAS,23/08/2022,SOFTWARE & LICENCES,SCOTLAND,ZOOM VIDEO COMMUNICATIONS INC,PINV987,110.31
BEIS,ACAS,23/08/2022,SOFTWARE & LICENCES,NORTH&MID,ZOOM VIDEO COMMUNICATIONS INC,PINV987,68.95
BEIS,ACAS,23/08/2022,SOFTWARE & LICENCES,NORTH&MID,ZOOM VIDEO COMMUNICATIONS INC,PINV987,151.69
BEIS,ACAS,23/08/2022,SOFTWARE & LICENCES,NORTH&MID,ZOOM VIDEO COMMUNICATIONS INC,PINV987,124.11
BEIS,ACAS,23/08/2022,SOFTWARE & LICENCES,NORTH&MID,ZOOM VIDEO COMMUNICATIONS INC,PINV987,110.31
BEIS,ACAS,23/08/2022,SOFTWARE & LICENCES,WALES&MID,ZOOM VIDEO COMMUNICATIONS INC,PINV987,165.48
BEIS,ACAS,23/08/2022,SOFTWARE & LICENCES,WALES&MID,ZOOM VIDEO COMMUNICATIONS INC,PINV987,110.31
BEIS,ACAS,23/08/2022,SOFTWARE & LICENCES,SOUTH&LONDON,ZOOM VIDEO COMMUNICATIONS INC,PINV987,96.53
BEIS,ACAS,23/08/2022,SOFTWARE & LICENCES,SOUTH&LONDON,ZOOM VIDEO COMMUNICATIONS INC,PINV987,151.69
BEIS,ACAS,23/08/2022,SOFTWARE & LICENCES,SOUTH&LONDON,ZOOM VIDEO COMMUNICATIONS INC,PINV987,110.32
BEIS,ACAS,23/08/2022,SOFTWARE & LICENCES,SOUTH&LONDON,ZOOM VIDEO COMMUNICATIONS INC,PINV987,82.74
BEIS,ACAS,23/08/2022,SOFTWARE & LICENCES,NORTH&MID,ZOOM VIDEO COMMUNICATIONS INC,PINV987,13.79
BEIS,ACAS,01/09/2022,PUBLICITY,STRATEGY,CISION,PINV989,2670
BEIS,ACAS,20/09/2022,PERSONAL EXPENSE,WALES&MID,NAME / DESCRIPTION WITHHELD,EXPS992,558
BEIS,ACAS,20/09/2022,PERSONAL EXPENSE,WALES&MID,NAME / DESCRIPTION WITHHELD,EXPS992,29.95
BEIS,ACAS,20/09/2022,PERSONAL EXPENSE,WALES&MID,NAME / DESCRIPTION WITHHELD,EXPS992,50
BEIS,ACAS,20/09/2022,PERSONAL EXPENSE,WALES&MID,NAME / DESCRIPTION WITHHELD,EXPS992,10
BEIS,ACAS,20/09/2022,PERSONAL EXPENSE,WALES&MID,NAME / DESCRIPTION WITHHELD,EXPS992,70
BEIS,ACAS,05/09/2022,OCCUPATIONAL HEALTH SERVICE,ODHR,HEALTH MANAGEMENT LTD,PINV992,300
BEIS,ACAS,05/09/2022,OCCUPATIONAL HEALTH SERVICE,ODHR,HEALTH MANAGEMENT LTD,PINV993,712.5
BEIS,ACAS,05/09/2022,OCCUPATIONAL HEALTH SERVICE,ODHR,HEALTH MANAGEMENT LTD,PINV993,108
BEIS,ACAS,07/09/2022,EXTERNAL CONF & SEMINARS,CO,TRADES UNION CONGRESS,PINV994,84
BEIS,ACAS,07/09/2022,EXTERNAL CONF & SEMINARS,CO,TRADES UNION CONGRESS,PINV994,84
BEIS,ACAS,07/09/2022,EXTERNAL CONF & SEMINARS,CO,TRADES UNION CONGRESS,PINV994,84
BEIS,ACAS,07/09/2022,EXTERNAL CONF & SEMINARS,CO,TRADES UNION CONGRESS,PINV994,84
BEIS,ACAS,07/09/2022,EXTERNAL CONF & SEMINARS,CO,TRADES UNION CONGRESS,PINV994,84
BEIS,ACAS,11/08/2022,AGENCY STAFF,SPPC,ALEXANDER MANN SOLUTIONS LTD,PINV995,715.81
BEIS,ACAS,21/09/2022,PERSONAL EXPENSE,DELIVERY,NAME / DESCRIPTION WITHHELD,EXPS996,689.59
BEIS,ACAS,08/09/2022,AGENCY STAFF,NORTH&MID,ALEXANDER MANN SOLUTIONS LTD,PINV997,261.36
BEIS,ACAS,09/09/2022,VENUE HIRE (REC VAT),NORTH&MID,CALDER CONFERENCES LTD,PINV998,438
BEIS,ACAS,09/09/2022,CATERING,NORTH&MID,CALDER CONFERENCES LTD,PINV998,83.4
BEIS,ACAS,09/09/2022,CATERING,NORTH&MID,CALDER CONFERENCES LTD,PINV998,47.4
BEIS,ACAS,09/09/2022,VENUE HIRE (REC VAT),NORTH&MID,CALDER CONFERENCES LTD,PINV998,49.31
BEIS,ACAS,09/09/2022,VENUE HIRE (REC VAT),NORTH&MID,CALDER CONFERENCES LTD,PINV998,374
BEIS,ACAS,01/08/2022,VENUE HIRE (REC VAT),FEP,CLOCKWISE SAVOY LIMITED,PINV999,1152
BEIS,ACAS,21/09/2022,PERSONAL EXPENSE,WALES&MID,NAME / DESCRIPTION WITHHELD,EXPS1001,296.1
BEIS,ACAS,21/09/2022,PERSONAL EXPENSE,WALES&MID,NAME / DESCRIPTION WITHHELD,EXPS1001,106.2
BEIS,ACAS,21/09/2022,PERSONAL EXPENSE,WALES&MID,NAME / DESCRIPTION WITHHELD,EXPS1001,28
BEIS,ACAS,21/09/2022,PERSONAL EXPENSE,WALES&MID,NAME / DESCRIPTION WITHHELD,EXPS1001,10
BEIS,ACAS,21/09/2022,PERSONAL EXPENSE,WALES&MID,NAME / DESCRIPTION WITHHELD,EXPS1001,70
BEIS,ACAS,21/09/2022,PERSONAL EXPENSE,WALES&MID,NAME / DESCRIPTION WITHHELD,EXPS1001,5
BEIS,ACAS,21/09/2022,PERSONAL EXPENSE,WALES&MID,NAME / DESCRIPTION WITHHELD,EXPS1001,35
BEIS,ACAS,21/09/2022,PERSONAL EXPENSE,DELIVERY,NAME / DESCRIPTION WITHHELD,EXPS1002,1697.46
BEIS,ACAS,09/09/2022,TRAINERS & GUEST SPEAKERS,DELIVERY,IRWIN MITCHELL LLP,PINV1003,360
BEIS,ACAS,08/09/2022,GOVT SOLICITORS FEES,ODHR,GOVERNMENT LEGAL DEPARTMENT,PINV1004,8888.6
BEIS,ACAS,13/09/2022,EXTERNAL LEARNING,ODHR,QAIQ,PINV1005,1973.4
BEIS,ACAS,21/09/2022,PERSONAL EXPENSE,DELIVERY,NAME / DESCRIPTION WITHHELD,EXPS1006,212.85
BEIS,ACAS,21/09/2022,PERSONAL EXPENSE,DELIVERY,NAME / DESCRIPTION WITHHELD,EXPS1006,26.3
BEIS,ACAS,21/09/2022,PERSONAL EXPENSE,DELIVERY,NAME / DESCRIPTION WITHHELD,EXPS1006,5
BEIS,ACAS,21/09/2022,PERSONAL EXPENSE,DELIVERY,NAME / DESCRIPTION WITHHELD,EXPS1006,10
BEIS,ACAS,21/09/2022,PERSONAL EXPENSE,DELIVERY,NAME / DESCRIPTION WITHHELD,EXPS1006,25
BEIS,ACAS,21/09/2022,PERSONAL EXPENSE,DELIVERY,NAME / DESCRIPTION WITHHELD,EXPS1006,35
BEIS,ACAS,27/08/2022,MOBILE PHONES,DDAT,TELEFONICA UK LTD (O2),PINV1006,538.28
BEIS,ACAS,27/08/2022,MOBILE PHONES,DDAT,TELEFONICA UK LTD (O2),PINV1006,59.81
BEIS,ACAS,22/09/2022,PERSONAL EXPENSE,SOUTH&LONDON,NAME / DESCRIPTION WITHHELD,EXPS1007,396.9
BEIS,ACAS,22/09/2022,PERSONAL EXPENSE,SOUTH&LONDON,NAME / DESCRIPTION WITHHELD,EXPS1007,35
BEIS,ACAS,22/09/2022,PERSONAL EXPENSE,SOUTH&LONDON,NAME / DESCRIPTION WITHHELD,EXPS1007,20
BEIS,ACAS,22/09/2022,PERSONAL EXPENSE,SOUTH&LONDON,NAME / DESCRIPTION WITHHELD,EXPS1007,35
BEIS,ACAS,22/09/2022,PERSONAL EXPENSE,SOUTH&LONDON,NAME / DESCRIPTION WITHHELD,EXPS1007,5
BEIS,ACAS,30/08/2022,PHOTOCOPIERS,DDAT,Canon (UK) Ltd,PINV1007,1041.96
BEIS,ACAS,30/08/2022,PHOTOCOPIERS,DDAT,Canon (UK) Ltd,PINV1007,115.78
BEIS,ACAS,18/08/2022,CONTRACTOR OFF-PAYROLL IN IR35,DDAT,ALEXANDER MANN SOLUTIONS LTD,PINV1009,6817.44
BEIS,ACAS,15/09/2022,AGENCY STAFF,NORTH&MID,ALEXANDER MANN SOLUTIONS LTD,PINV1010,644.69
BEIS,ACAS,23/09/2022,PERSONAL EXPENSE,WALES&MID,NAME / DESCRIPTION WITHHELD,EXPS1012,143.1
BEIS,ACAS,23/09/2022,PERSONAL EXPENSE,WALES&MID,NAME / DESCRIPTION WITHHELD,EXPS1012,105
BEIS,ACAS,23/09/2022,PERSONAL EXPENSE,WALES&MID,NAME / DESCRIPTION WITHHELD,EXPS1012,15
BEIS,ACAS,23/09/2022,PERSONAL EXPENSE,WALES&MID,NAME / DESCRIPTION WITHHELD,EXPS1012,10
BEIS,ACAS,23/09/2022,PERSONAL EXPENSE,WALES&MID,NAME / DESCRIPTION WITHHELD,EXPS1012,10
BEIS,ACAS,23/09/2022,PERSONAL EXPENSE,WALES&MID,NAME / DESCRIPTION WITHHELD,EXPS1012,24.95
BEIS,ACAS,15/09/2022,STAFF WELFARE,DELIVERY,CAROL MARTYN LTD,PINV1012,360
BEIS,ACAS,23/09/2022,PERSONAL EXPENSE,DELIVERY,NAME / DESCRIPTION WITHHELD,EXPS1013,161.1
BEIS,ACAS,23/09/2022,PERSONAL EXPENSE,DELIVERY,NAME / DESCRIPTION WITHHELD,EXPS1013,356.35
BEIS,ACAS,23/09/2022,PERSONAL EXPENSE,DELIVERY,NAME / DESCRIPTION WITHHELD,EXPS1013,10
BEIS,ACAS,23/09/2022,PERSONAL EXPENSE,DELIVERY,NAME / DESCRIPTION WITHHELD,EXPS1013,10
BEIS,ACAS,23/09/2022,PERSONAL EXPENSE,DELIVERY,NAME / DESCRIPTION WITHHELD,EXPS1013,70
BEIS,ACAS,26/09/2022,PERSONAL EXPENSE,DELIVERY,NAME / DESCRIPTION WITHHELD,EXPS1014,80.1
BEIS,ACAS,26/09/2022,PERSONAL EXPENSE,DELIVERY,NAME / DESCRIPTION WITHHELD,EXPS1014,42.5
BEIS,ACAS,26/09/2022,PERSONAL EXPENSE,DELIVERY,NAME / DESCRIPTION WITHHELD,EXPS1014,30.08
BEIS,ACAS,26/09/2022,PERSONAL EXPENSE,DELIVERY,NAME / DESCRIPTION WITHHELD,EXPS1014,25.2
BEIS,ACAS,26/09/2022,PERSONAL EXPENSE,DELIVERY,NAME / DESCRIPTION WITHHELD,EXPS1014,20
BEIS,ACAS,26/09/2022,PERSONAL EXPENSE,DELIVERY,NAME / DESCRIPTION WITHHELD,EXPS1014,80.98
BEIS,ACAS,26/09/2022,PERSONAL EXPENSE,DELIVERY,NAME / DESCRIPTION WITHHELD,EXPS1014,105
BEIS,ACAS,26/09/2022,PERSONAL EXPENSE,DELIVERY,NAME / DESCRIPTION WITHHELD,EXPS1014,15
BEIS,ACAS,26/09/2022,PERSONAL EXPENSE,DELIVERY,NAME / DESCRIPTION WITHHELD,EXPS1014,20
BEIS,ACAS,26/09/2022,PERSONAL EXPENSE,DELIVERY,NAME / DESCRIPTION WITHHELD,EXPS1014,10
BEIS,ACAS,26/09/2022,PERSONAL EXPENSE,DELIVERY,NAME / DESCRIPTION WITHHELD,EXPS1014,5
BEIS,ACAS,26/09/2022,PERSONAL EXPENSE,DELIVERY,NAME / DESCRIPTION WITHHELD,EXPS1014,10
BEIS,ACAS,01/09/2022,HOME WORKER TELEPHONE CHRG,DDAT,GTT,PINV1014,1232.66
BEIS,ACAS,01/09/2022,HOME WORKER TELEPHONE CHRG,DDAT,GTT,PINV1014,136.96
BEIS,ACAS,20/09/2022,CHILDCARE VOUCHERS,FEP,EDENRED CHILDCARE VOUCHERS LTD,PINV1015,2226
BEIS,ACAS,15/08/2022,EXHIBITION COSTS,STRATEGY,HAYMARKET MEDIA GROUP LIMITED,PINV1016,2818.8
BEIS,ACAS,05/09/2022,PROFESSIONAL FEES,DDAT,W3 PARTNERSHIP LTD,PINV1017,2439.26
BEIS,ACAS,26/09/2022,PERSONAL EXPENSE,NORTH&MID,NAME / DESCRIPTION WITHHELD,EXPS1018,80.1
BEIS,ACAS,26/09/2022,PERSONAL EXPENSE,NORTH&MID,NAME / DESCRIPTION WITHHELD,EXPS1018,83.39
BEIS,ACAS,26/09/2022,PERSONAL EXPENSE,NORTH&MID,NAME / DESCRIPTION WITHHELD,EXPS1018,15
BEIS,ACAS,26/09/2022,PERSONAL EXPENSE,NORTH&MID,NAME / DESCRIPTION WITHHELD,EXPS1018,10
BEIS,ACAS,26/09/2022,PERSONAL EXPENSE,NORTH&MID,NAME / DESCRIPTION WITHHELD,EXPS1018,105
BEIS,ACAS,09/09/2022,MOBILE PHONES,DDAT,TELEFONICA UK LTD (O2),PINV1018,5158.63
BEIS,ACAS,09/09/2022,MOBILE PHONES,DDAT,TELEFONICA UK LTD (O2),PINV1018,573.18
BEIS,ACAS,08/09/2022,PROFESSIONAL FEES,DDAT,GAMMA TELECOM LIMITED,PINV1019,4238.62
BEIS,ACAS,01/09/2022,TELEPHONES,DDAT,GTT,PINV1020,46490.93
BEIS,ACAS,01/09/2022,TELEPHONES,DDAT,GTT,PINV1020,5165.66
BEIS,ACAS,01/09/2022,PROFESSIONAL FEES,DDAT,TISSKI LTD,PINV1021,2536
BEIS,ACAS,22/09/2022,AGENCY STAFF,NORTH&MID,ALEXANDER MANN SOLUTIONS LTD,PINV1025,644.69
BEIS,ACAS,24/09/2022,HIRE CAR COSTS,SOUTH&LONDON,ENTERPRISE RENT-A-CAR,PINV1027,165.01
BEIS,ACAS,24/09/2022,HIRE CAR COSTS,SOUTH&LONDON,ENTERPRISE RENT-A-CAR,PINV1027,81.95
BEIS,ACAS,24/09/2022,HIRE CAR COSTS,DELIVERY,ENTERPRISE RENT-A-CAR,PINV1027,84.95
BEIS,ACAS,24/09/2022,HIRE CAR COSTS,DDAT,ENTERPRISE RENT-A-CAR,PINV1027,103.9
BEIS,ACAS,24/09/2022,HIRE CAR COSTS,SOUTH&LONDON,ENTERPRISE RENT-A-CAR,PINV1027,185.06
BEIS,ACAS,24/09/2022,HIRE CAR COSTS,DDAT,ENTERPRISE RENT-A-CAR,PINV1027,73.9
BEIS,ACAS,22/08/2022,HARDWARE ADDITIONS,DDAT,PROBRAND LIMITED,PINV1029,780.2
BEIS,ACAS,22/08/2022,COMPUTER HARDWARE,DDAT,PROBRAND LIMITED,PINV1029,236.38
BEIS,ACAS,28/09/2022,PERSONAL EXPENSE,SCOTLAND,NAME / DESCRIPTION WITHHELD,EXPS1030,215.1
BEIS,ACAS,28/09/2022,PERSONAL EXPENSE,SCOTLAND,NAME / DESCRIPTION WITHHELD,EXPS1030,18.7
BEIS,ACAS,28/09/2022,PERSONAL EXPENSE,SCOTLAND,NAME / DESCRIPTION WITHHELD,EXPS1030,15.5
BEIS,ACAS,28/09/2022,PERSONAL EXPENSE,SCOTLAND,NAME / DESCRIPTION WITHHELD,EXPS1030,20
BEIS,ACAS,28/09/2022,PERSONAL EXPENSE,SCOTLAND,NAME / DESCRIPTION WITHHELD,EXPS1030,5
BEIS,ACAS,28/09/2022,PERSONAL EXPENSE,SCOTLAND,NAME / DESCRIPTION WITHHELD,EXPS1030,35
BEIS,ACAS,28/09/2022,MOBILE PHONES,DDAT,TELEFONICA UK LTD (O2),PINV1030,531.91
BEIS,ACAS,28/09/2022,MOBILE PHONES,DDAT,TELEFONICA UK LTD (O2),PINV1030,59.1
BEIS,ACAS,28/09/2022,PERSONAL EXPENSE,DDAT,NAME / DESCRIPTION WITHHELD,EXPS1032,6.8
BEIS,ACAS,28/09/2022,PERSONAL EXPENSE,DDAT,NAME / DESCRIPTION WITHHELD,EXPS1032,160.9
BEIS,ACAS,28/09/2022,PERSONAL EXPENSE,DDAT,NAME / DESCRIPTION WITHHELD,EXPS1032,145.32
BEIS,ACAS,28/09/2022,PERSONAL EXPENSE,DDAT,NAME / DESCRIPTION WITHHELD,EXPS1032,25
BEIS,ACAS,28/09/2022,REFUNDS,WALES&MID,CITIZENS ADVICE WORCESTER,PINV1032,255
BEIS,ACAS,28/09/2022,REFUNDS,NORTH&MID,MANCHESTER DESIGN AND BUILD,PINV1033,350
BEIS,ACAS,28/09/2022,VENUE HIRE (REC VAT),NORTH&MID,CALDER CONFERENCES LTD,PINV1035,390
BEIS,ACAS,28/09/2022,VENUE HIRE (REC VAT),NORTH&MID,CALDER CONFERENCES LTD,PINV1035,94.86
BEIS,ACAS,28/09/2022,VENUE HIRE (REC VAT),NORTH&MID,CALDER CONFERENCES LTD,PINV1035,396
BEIS,ACAS,28/09/2022,VENUE HIRE (REC VAT),NORTH&MID,CALDER CONFERENCES LTD,PINV1035,15
BEIS,ACAS,29/09/2022,PERSONAL EXPENSE,SPPC,NAME / DESCRIPTION WITHHELD,EXPS1037,13.5
BEIS,ACAS,29/09/2022,PERSONAL EXPENSE,SPPC,NAME / DESCRIPTION WITHHELD,EXPS1037,16.5
BEIS,ACAS,29/09/2022,PERSONAL EXPENSE,SPPC,NAME / DESCRIPTION WITHHELD,EXPS1037,15
BEIS,ACAS,29/09/2022,PERSONAL EXPENSE,SPPC,NAME / DESCRIPTION WITHHELD,EXPS1037,1.65
BEIS,ACAS,29/09/2022,PERSONAL EXPENSE,SPPC,NAME / DESCRIPTION WITHHELD,EXPS1037,134.59
BEIS,ACAS,29/09/2022,PERSONAL EXPENSE,SPPC,NAME / DESCRIPTION WITHHELD,EXPS1037,5
BEIS,ACAS,29/09/2022,PERSONAL EXPENSE,SPPC,NAME / DESCRIPTION WITHHELD,EXPS1037,5
BEIS,ACAS,29/09/2022,PERSONAL EXPENSE,SPPC,NAME / DESCRIPTION WITHHELD,EXPS1037,35
BEIS,ACAS,29/09/2022,PERSONAL EXPENSE,SPPC,NAME / DESCRIPTION WITHHELD,EXPS1037,47.37
BEIS,ACAS,29/09/2022,PERSONAL EXPENSE,SPPC,NAME / DESCRIPTION WITHHELD,EXPS1037,48.22
